[Event "Live Chess"]
[Site "Chess.com"]
[Date "2024.06.01"]
[Round "-"]
[White "Bob2pen"]
[Black "Duke_of_Bebington"]
[Result "1-0"]
[WhiteElo "1833"]
[BlackElo "1608"]
[TimeControl "300"]
[EndTime "10:21:15 PDT"]
[Termination "Bob2pen won by resignation"]

1. e4 {[%clk 0:04:55.1]} 1... e5 {[%clk 0:04:58.7]} 2. Nf3 {[%clk 0:04:53.8]}
2... Nf6 {[%clk 0:04:57.3]} 3. d4 {[%clk 0:04:52.8]} 3... Nxe4 {[%clk 0:04:55]}
4. Bd3 {[%clk 0:04:51.7]} 4... Nc6 {[%clk 0:04:46.6]} 5. Bxe4 {[%clk 0:04:49.2]}
5... d5 {[%clk 0:04:45.3]} 6. Nxe5 {[%clk 0:04:42.5]} 6... dxe4 {[%clk
0:04:38.9]} 7. Nxc6 {[%clk 0:04:40.7]} 7... bxc6 {[%clk 0:04:38.2]} 8. O-O
{[%clk 0:04:39.5]} 8... Bd6 {[%clk 0:04:28.1]} 9. Qh5 {[%clk 0:04:32.8]} 9...
O-O {[%clk 0:04:23.9]} 10. Bg5 {[%clk 0:04:28.4]} 10... Qd7 {[%clk 0:04:12.4]}
11. Nd2 {[%clk 0:04:24.4]} 11... f5 {[%clk 0:04:05.7]} 12. Nc4 {[%clk 0:04:21]}
12... Ba6 {[%clk 0:04:01.4]} 13. b3 {[%clk 0:04:18.1]} 13... Qf7 {[%clk
0:03:45.2]} 14. Qxf7+ {[%clk 0:04:15.9]} 14... Rxf7 {[%clk 0:03:45.1]} 15. Nxd6
{[%clk 0:04:03.7]} 15... cxd6 {[%clk 0:03:44]} 16. Rfe1 {[%clk 0:03:57.1]} 16...
h6 {[%clk 0:03:41.3]} 17. Bf4 {[%clk 0:03:55.6]} 17... d5 {[%clk 0:03:38.9]} 18.
h4 {[%clk 0:03:53.5]} 18... Rc8 {[%clk 0:03:29.6]} 19. Be5 {[%clk 0:03:51.5]}
19... c5 {[%clk 0:03:28]} 20. c3 {[%clk 0:03:48.7]} 20... cxd4 {[%clk
0:03:18.2]} 21. Bxd4 {[%clk 0:03:47.2]} 21... Bd3 {[%clk 0:03:16.2]} 22. Re3
{[%clk 0:03:42.8]} 22... f4 {[%clk 0:03:09.4]} 23. Ree1 {[%clk 0:03:40.1]} 23...
Rc6 {[%clk 0:02:53.3]} 24. Rad1 {[%clk 0:03:38.3]} 24... Rg6 {[%clk 0:02:41.1]}
25. Rd2 {[%clk 0:03:35.7]} 25... Rg4 {[%clk 0:02:35.2]} 26. f3 {[%clk
0:03:30.6]} 26... Rxh4 {[%clk 0:02:27.5]} 27. c4 {[%clk 0:03:25.9]} 27... dxc4
{[%clk 0:02:14.9]} 28. bxc4 {[%clk 0:03:23.7]} 28... Bxc4 {[%clk 0:02:10]} 29.
Rxe4 {[%clk 0:03:21.5]} 29... Rh5 {[%clk 0:01:59.6]} 30. Be5 {[%clk 0:03:16.6]}
30... Bb5 {[%clk 0:01:29.7]} 31. Bxf4 {[%clk 0:03:12.1]} 31... Rc5 {[%clk
0:01:23.3]} 32. Red4 {[%clk 0:03:06.1]} 32... a6 {[%clk 0:01:14.8]} 33. Kf2
{[%clk 0:03:03]} 33... Rf8 {[%clk 0:01:00.7]} 34. Bd6 {[%clk 0:03:00.2]} 34...
Rfc8 {[%clk 0:00:56.6]} 35. Bxc5 {[%clk 0:02:58.5]} 35... Rxc5 {[%clk
0:00:56.5]} 36. g4 {[%clk 0:02:53.2]} 36... Kh7 {[%clk 0:00:55.7]} 37. Kg3
{[%clk 0:02:51.7]} 37... Bc6 {[%clk 0:00:54.4]} 38. f4 {[%clk 0:02:49.5]} 38...
Rc3+ {[%clk 0:00:53.3]} 39. R4d3 {[%clk 0:02:48.3]} 39... Rc1 {[%clk 0:00:49.9]}
40. f5 {[%clk 0:02:46.8]} 40... Rg1+ {[%clk 0:00:48.5]} 41. Kf4 {[%clk
0:02:45.7]} 41... Rf1+ {[%clk 0:00:47.3]} 42. Ke5 {[%clk 0:02:43.7]} 42... Bb5
{[%clk 0:00:41.6]} 43. Rd4 {[%clk 0:02:40.5]} 43... Re1+ {[%clk 0:00:40.3]} 44.
Kd6 {[%clk 0:02:39.2]} 44... Re8 {[%clk 0:00:38]} 45. Rh2 {[%clk 0:02:32.6]}
45... Rd8+ {[%clk 0:00:36]} 46. Kc5 {[%clk 0:02:31.4]} 46... Rc8+ {[%clk
0:00:35.2]} 47. Kd6 {[%clk 0:02:28.8]} 47... Rd8+ {[%clk 0:00:34.1]} 48. Ke5
{[%clk 0:02:28]} 48... Re8+ {[%clk 0:00:33.2]} 49. Kf4 {[%clk 0:02:26.3]} 49...
Re1 {[%clk 0:00:30.7]} 50. g5 {[%clk 0:02:20]} 50... Rf1+ {[%clk 0:00:29.2]} 51.
Ke5 {[%clk 0:02:18.6]} 51... Re1+ {[%clk 0:00:25.8]} 52. Kd6 {[%clk 0:02:17.3]}
52... Re7 {[%clk 0:00:19.5]} 53. Kxe7 {[%clk 0:02:15.4]} 1-0

[Event "Live Chess"]
[Site "Chess.com"]
[Date "2024.06.01"]
[Round "-"]
[White "MaximKhimchenko"]
[Black "Trendle"]
[Result "0-1"]
[WhiteElo "1782"]
[BlackElo "2621"]
[TimeControl "300"]
[EndTime "10:21:15 PDT"]
[Termination "Trendle won by resignation"]

1. e4 {[%clk 0:04:55.7]} 1... e6 {[%clk 0:04:58.1]} 2. d4 {[%clk 0:04:53.9]}
2... d5 {[%clk 0:04:57.7]} 3. e5 {[%clk 0:04:53.2]} 3... c5 {[%clk 0:04:56.3]}
4. c3 {[%clk 0:04:52.7]} 4... Qb6 {[%clk 0:04:55.2]} 5. Nf3 {[%clk 0:04:52.1]}
5... Nc6 {[%clk 0:04:54]} 6. Be2 {[%clk 0:04:51.6]} 6... Nge7 {[%clk 0:04:49.4]}
7. Na3 {[%clk 0:04:47.9]} 7... cxd4 {[%clk 0:04:48.2]} 8. cxd4 {[%clk 0:04:47]}
8... Nf5 {[%clk 0:04:46.4]} 9. Nc2 {[%clk 0:04:45.7]} 9... Bd7 {[%clk
0:04:39.7]} 10. O-O {[%clk 0:04:43]} 10... a5 {[%clk 0:04:37.8]} 11. g4 {[%clk
0:04:37.4]} 11... Nfe7 {[%clk 0:04:31.1]} 12. Bg5 {[%clk 0:04:15.5]} 12... h5
{[%clk 0:04:26.2]} 13. h3 {[%clk 0:04:09.4]} 13... hxg4 {[%clk 0:04:24.1]} 14.
hxg4 {[%clk 0:04:09.3]} 14... Ng6 {[%clk 0:03:54]} 15. Kg2 {[%clk 0:04:02.3]}
15... Be7 {[%clk 0:03:52.4]} 16. Bxe7 {[%clk 0:03:59.8]} 16... Ncxe7 {[%clk
0:03:42.2]} 17. Rh1 {[%clk 0:03:59.7]} 17... O-O-O {[%clk 0:03:38.8]} 18. b4
{[%clk 0:03:48.6]} 18... Nf4+ {[%clk 0:03:35.8]} 19. Kg3 {[%clk 0:03:37.4]}
19... Rxh1 {[%clk 0:03:31.2]} 20. Qxh1 {[%clk 0:03:29.9]} 20... Nxe2+ {[%clk
0:03:29.7]} 21. Kg2 {[%clk 0:03:29.1]} 21... axb4 {[%clk 0:03:23.7]} 22. Rb1
{[%clk 0:03:28]} 22... Nc6 {[%clk 0:03:18.9]} 23. a3 {[%clk 0:03:22.1]} 23... b3
{[%clk 0:03:17.7]} 24. Na1 {[%clk 0:03:18.6]} 24... b2 {[%clk 0:03:08.6]} 25.
Qd1 {[%clk 0:03:14.5]} 25... Nc3 {[%clk 0:03:00]} 0-1

[Event "Live Chess"]
[Site "Chess.com"]
[Date "2024.06.01"]
[Round "-"]
[White "E2E4colchester"]
[Black "Brooms1989"]
[Result "0-1"]
[WhiteElo "1092"]
[BlackElo "1070"]
[TimeControl "300"]
[EndTime "10:21:20 PDT"]
[Termination "Brooms1989 won by checkmate"]

1. d4 {[%clk 0:04:55.4]} 1... Nf6 {[%clk 0:04:58.6]} 2. c4 {[%clk 0:04:53.9]}
2... g6 {[%clk 0:04:56.7]} 3. e3 {[%clk 0:04:52.7]} 3... Bg7 {[%clk 0:04:54.8]}
4. Nc3 {[%clk 0:04:51.6]} 4... O-O {[%clk 0:04:53.5]} 5. b3 {[%clk 0:04:50.5]}
5... d5 {[%clk 0:04:46.7]} 6. Bb2 {[%clk 0:04:48.7]} 6... c6 {[%clk 0:04:40.9]}
7. Nf3 {[%clk 0:04:46.2]} 7... Bg4 {[%clk 0:04:37.9]} 8. h3 {[%clk 0:04:43.1]}
8... Bd7 {[%clk 0:04:30.7]} 9. Ne5 {[%clk 0:04:37.7]} 9... Ne4 {[%clk
0:04:19.7]} 10. Nxe4 {[%clk 0:04:35.8]} 10... dxe4 {[%clk 0:04:18]} 11. Nxd7
{[%clk 0:04:33.2]} 11... Qxd7 {[%clk 0:04:17.9]} 12. Qd2 {[%clk 0:04:27.4]}
12... f5 {[%clk 0:04:14.3]} 13. c5 {[%clk 0:04:25.8]} 13... b6 {[%clk
0:04:02.7]} 14. Bc4+ {[%clk 0:04:24.2]} 14... Kh8 {[%clk 0:04:00.9]} 15. O-O-O
{[%clk 0:04:22.4]} 15... b5 {[%clk 0:03:57.9]} 16. Be2 {[%clk 0:04:21.3]} 16...
a5 {[%clk 0:03:56.6]} 17. a3 {[%clk 0:04:18.2]} 17... a4 {[%clk 0:03:37]} 18. b4
{[%clk 0:04:16.7]} 18... Qc7 {[%clk 0:03:20.6]} 19. f3 {[%clk 0:04:14.5]} 19...
exf3 {[%clk 0:03:11.5]} 20. Bxf3 {[%clk 0:04:13.3]} 20... Nd7 {[%clk 0:03:10.2]}
21. g4 {[%clk 0:04:04.9]} 21... f4 {[%clk 0:02:59.1]} 22. exf4 {[%clk
0:04:01.8]} 22... Qxf4 {[%clk 0:02:54.1]} 23. Qxf4 {[%clk 0:03:58.8]} 23... Rxf4
{[%clk 0:02:52.3]} 24. d5 {[%clk 0:03:57.1]} 24... Bxb2+ {[%clk 0:02:41]} 25.
Kxb2 {[%clk 0:03:53.7]} 25... Rxf3 {[%clk 0:02:39.8]} 26. dxc6 {[%clk
0:03:51.8]} 26... Ne5 {[%clk 0:02:37.6]} 27. c7 {[%clk 0:03:46.6]} 27... Nc6
{[%clk 0:02:04]} 28. Rd2 {[%clk 0:03:27.6]} 28... Rc8 {[%clk 0:02:00.1]} 29. Rd7
{[%clk 0:03:15.4]} 29... Rf2+ {[%clk 0:01:54.2]} 30. Kb1 {[%clk 0:03:13.2]}
30... Kg7 {[%clk 0:01:40.8]} 31. Rhd1 {[%clk 0:03:11.3]} 31... Kf7 {[%clk
0:01:35]} 32. R7d3 {[%clk 0:02:53.1]} 32... Rxc7 {[%clk 0:01:29.7]} 33. R1d2
{[%clk 0:02:49]} 33... Rxd2 {[%clk 0:01:27.5]} 34. Rxd2 {[%clk 0:02:48.2]} 34...
Ne5 {[%clk 0:01:23.8]} 35. Rf2+ {[%clk 0:02:46.7]} 35... Ke6 {[%clk 0:01:20.1]}
36. Kc2 {[%clk 0:02:45.9]} 36... Nc4 {[%clk 0:01:16.2]} 37. Re2+ {[%clk
0:02:34.6]} 37... Kf7 {[%clk 0:01:13.6]} 38. Rg2 {[%clk 0:02:33.7]} 38... Rd7
{[%clk 0:01:07.7]} 39. Rf2+ {[%clk 0:02:31.2]} 39... Ke8 {[%clk 0:01:01.3]} 40.
Re2 {[%clk 0:02:28.5]} 40... e5 {[%clk 0:00:59.1]} 41. Kc3 {[%clk 0:02:19.2]}
41... Ke7 {[%clk 0:00:57.9]} 42. h4 {[%clk 0:02:12.3]} 42... Ke6 {[%clk
0:00:51.4]} 43. h5 {[%clk 0:02:07.7]} 43... gxh5 {[%clk 0:00:47]} 44. gxh5
{[%clk 0:02:06.1]} 44... Nxa3 {[%clk 0:00:41.4]} 45. Re4 {[%clk 0:01:59.1]}
45... Nc4 {[%clk 0:00:39.9]} 46. Re1 {[%clk 0:01:56]} 46... Kf5 {[%clk
0:00:33.9]} 47. Rf1+ {[%clk 0:01:55]} 47... Kg5 {[%clk 0:00:31.5]} 48. h6 {[%clk
0:01:52.7]} 48... Kxh6 {[%clk 0:00:29.7]} 49. Rh1+ {[%clk 0:01:51.6]} 49... Kg6
{[%clk 0:00:28.3]} 50. Rg1+ {[%clk 0:01:50.8]} 50... Kf6 {[%clk 0:00:27.4]} 51.
Rf1+ {[%clk 0:01:49.9]} 51... Ke6 {[%clk 0:00:26]} 52. Re1 {[%clk 0:01:48.8]}
52... h5 {[%clk 0:00:24.2]} 53. Rh1 {[%clk 0:01:47.6]} 53... Rh7 {[%clk
0:00:23]} 54. Rh4 {[%clk 0:01:46.6]} 54... Kf5 {[%clk 0:00:20.6]} 55. c6 {[%clk
0:01:42.4]} 55... Kg5 {[%clk 0:00:15]} 56. c7 {[%clk 0:01:37]} 56... Rxc7 {[%clk
0:00:14.3]} 57. Rh1 {[%clk 0:01:34]} 57... Ne3+ {[%clk 0:00:13.1]} 58. Kd2
{[%clk 0:01:30]} 58... Ng4 {[%clk 0:00:12.6]} 59. Ke2 {[%clk 0:01:21.5]} 59...
Rc4 {[%clk 0:00:12]} 60. Kd1 {[%clk 0:01:20]} 60... a3 {[%clk 0:00:11.1]} 61.
Kd2 {[%clk 0:01:18.1]} 61... a2 {[%clk 0:00:10.1]} 62. Ke2 {[%clk 0:01:14.8]}
62... Rxb4 {[%clk 0:00:08.8]} 63. Kf3 {[%clk 0:01:12.6]} 63... Rb1 {[%clk
0:00:06.7]} 64. Rh2 {[%clk 0:01:09.6]} 64... a1=Q {[%clk 0:00:05.3]} 65. Re2
{[%clk 0:01:07.7]} 65... Qc3+ {[%clk 0:00:05.2]} 66. Kg2 {[%clk 0:01:04.9]}
66... Rb2 {[%clk 0:00:04.7]} 67. Kf1 {[%clk 0:01:03.4]} 67... Rxe2 {[%clk
0:00:03.3]} 68. Kg1 {[%clk 0:01:00.6]} 68... b4 {[%clk 0:00:03.2]} 69. Kf1
{[%clk 0:00:58.4]} 69... b3 {[%clk 0:00:03.1]} 70. Kg1 {[%clk 0:00:57.3]} 70...
b2 {[%clk 0:00:03]} 71. Kf1 {[%clk 0:00:56.4]} 71... b1=Q+ {[%clk 0:00:02.9]}
72. Kxe2 {[%clk 0:00:52]} 72... Qbb2+ {[%clk 0:00:02.8]} 73. Kd1 {[%clk
0:00:50.7]} 73... Qcc1# {[%clk 0:00:02.7]} 0-1

[Event "Live Chess"]
[Site "Chess.com"]
[Date "2024.06.01"]
[Round "-"]
[White "DoctorMantisTobogganMD"]
[Black "willc-h99"]
[Result "1/2-1/2"]
[WhiteElo "2198"]
[BlackElo "2641"]
[TimeControl "300"]
[EndTime "10:21:53 PDT"]
[Termination "Game drawn - insufficient material"]

1. e4 {[%clk 0:04:59.2]} 1... a6 {[%clk 0:04:56.4]} 2. a4 {[%clk 0:04:51.9]}
2... h6 {[%clk 0:04:55]} 3. Nc3 {[%clk 0:04:51.1]} 3... g6 {[%clk 0:04:51.7]} 4.
Bc4 {[%clk 0:04:50.2]} 4... b6 {[%clk 0:04:49.5]} 5. Nge2 {[%clk 0:04:49.4]}
5... e6 {[%clk 0:04:47.4]} 6. O-O {[%clk 0:04:48.8]} 6... d6 {[%clk 0:04:46.6]}
7. d3 {[%clk 0:04:48]} 7... Bg7 {[%clk 0:04:45.2]} 8. f4 {[%clk 0:04:47.3]} 8...
Ne7 {[%clk 0:04:44]} 9. Ng3 {[%clk 0:04:46.4]} 9... O-O {[%clk 0:04:40.8]} 10.
f5 {[%clk 0:04:45.7]} 10... exf5 {[%clk 0:04:39.7]} 11. exf5 {[%clk 0:04:45.6]}
11... Nxf5 {[%clk 0:04:38.7]} 12. Nxf5 {[%clk 0:04:45.2]} 12... Bxf5 {[%clk
0:04:37.6]} 13. Rxf5 {[%clk 0:04:44.9]} 13... gxf5 {[%clk 0:04:36.4]} 14. Qh5
{[%clk 0:04:44.6]} 14... c6 {[%clk 0:04:22.3]} 15. Bxh6 {[%clk 0:04:37.2]} 15...
d5 {[%clk 0:04:16]} 16. Bxg7 {[%clk 0:04:35.8]} 16... Kxg7 {[%clk 0:04:14.8]}
17. Bb3 {[%clk 0:04:25.1]} 17... Qf6 {[%clk 0:04:07.6]} 18. Rf1 {[%clk
0:04:22.8]} 18... Rh8 {[%clk 0:04:01.1]} 19. Qf3 {[%clk 0:03:59.4]} 19... Nd7
{[%clk 0:03:37.1]} 20. Ne2 {[%clk 0:03:57.6]} 20... Ne5 {[%clk 0:03:23.8]} 21.
Qg3+ {[%clk 0:03:52.4]} 21... Ng4 {[%clk 0:03:06.4]} 22. h3 {[%clk 0:03:33.3]}
22... Rae8 {[%clk 0:03:05.8]} 23. hxg4 {[%clk 0:03:17.9]} 23... Rxe2 {[%clk
0:03:04.2]} 24. gxf5+ {[%clk 0:03:17.1]} 24... Kf8 {[%clk 0:03:03.1]} 25. Qb8+
{[%clk 0:03:13.9]} 25... Re8 {[%clk 0:03:00.3]} 26. Qxb6 {[%clk 0:02:58.5]}
26... Qd6 {[%clk 0:02:57.3]} 27. Qd4 {[%clk 0:02:36.5]} 27... f6 {[%clk
0:02:32.6]} 28. Qf4 {[%clk 0:02:30]} 28... Qxf4 {[%clk 0:02:27]} 29. Rxf4 {[%clk
0:02:29.9]} 29... Re1+ {[%clk 0:02:20.5]} 30. Kf2 {[%clk 0:02:28.6]} 30... Rhh1
{[%clk 0:02:20.1]} 31. Kg3 {[%clk 0:02:01.9]} 31... Re2 {[%clk 0:02:06.6]} 32.
Rf2 {[%clk 0:01:53.5]} 32... Rxf2 {[%clk 0:02:04.9]} 33. Kxf2 {[%clk 0:01:52.8]}
33... Rb1 {[%clk 0:02:04]} 34. Ke3 {[%clk 0:01:43.4]} 34... Rxb2 {[%clk
0:01:59.7]} 35. Kd4 {[%clk 0:01:41.2]} 35... Ke7 {[%clk 0:01:55.2]} 36. Kc5
{[%clk 0:01:40.1]} 36... Kd7 {[%clk 0:01:53.4]} 37. Kb6 {[%clk 0:01:39.3]} 37...
Rb1 {[%clk 0:01:46.9]} 38. a5 {[%clk 0:01:37.5]} 38... Rg1 {[%clk 0:01:41.1]}
39. Ba4 {[%clk 0:01:36.7]} 39... Rxg2 {[%clk 0:01:36.6]} 40. Bxc6+ {[%clk
0:01:35.6]} 40... Kd6 {[%clk 0:01:36]} 41. c4 {[%clk 0:01:23.5]} 41... Rb2+
{[%clk 0:01:30.8]} 42. Bb5 {[%clk 0:01:22.8]} 42... dxc4 {[%clk 0:01:22.2]} 43.
dxc4 {[%clk 0:01:22.1]} 43... Ke5 {[%clk 0:01:09.7]} 44. Kxa6 {[%clk 0:01:20.6]}
44... Kxf5 {[%clk 0:01:08]} 45. Kb7 {[%clk 0:01:19.5]} 45... Ke5 {[%clk
0:01:04.7]} 46. a6 {[%clk 0:01:18.6]} 46... Ra2 {[%clk 0:01:01.6]} 47. a7 {[%clk
0:01:17.4]} 47... Kd6 {[%clk 0:00:50.5]} 48. a8=Q {[%clk 0:01:10.1]} 48... Rxa8
{[%clk 0:00:48.3]} 49. Kxa8 {[%clk 0:01:10]} 49... f5 {[%clk 0:00:44.4]} 50. c5+
{[%clk 0:00:36.5]} 50... Kxc5 {[%clk 0:00:43.3]} 51. Bf1 {[%clk 0:00:35.9]}
51... Kd4 {[%clk 0:00:42.5]} 52. Ka7 {[%clk 0:00:35.8]} 52... Ke3 {[%clk
0:00:41.9]} 53. Ba6 {[%clk 0:00:35.5]} 53... f4 {[%clk 0:00:40.5]} 54. Kb6
{[%clk 0:00:35.4]} 54... f3 {[%clk 0:00:40.4]} 55. Kc5 {[%clk 0:00:34.8]} 55...
f2 {[%clk 0:00:40.1]} 56. Kd5 {[%clk 0:00:33.8]} 56... f1=Q {[%clk 0:00:40]} 57.
Bxf1 {[%clk 0:00:32.2]} 1/2-1/2

[Event "Live Chess"]
[Site "Chess.com"]
[Date "2024.06.01"]
[Round "-"]
[White "Ninifu"]
[Black "matt1979"]
[Result "1-0"]
[WhiteElo "2045"]
[BlackElo "1361"]
[TimeControl "300"]
[EndTime "10:21:56 PDT"]
[Termination "Ninifu won by resignation"]

1. d4 {[%clk 0:04:56.7]} 1... e6 {[%clk 0:04:56.9]} 2. c4 {[%clk 0:04:55.4]}
2... f5 {[%clk 0:04:55.8]} 3. Nc3 {[%clk 0:04:54]} 3... Bb4 {[%clk 0:04:54.1]}
4. Bd2 {[%clk 0:04:49.8]} 4... Nf6 {[%clk 0:04:53.1]} 5. Qc2 {[%clk 0:04:49.1]}
5... O-O {[%clk 0:04:50.7]} 6. e3 {[%clk 0:04:47.5]} 6... Ne4 {[%clk 0:04:48.9]}
7. Nxe4 {[%clk 0:04:45.5]} 7... Bxd2+ {[%clk 0:04:43.3]} 8. Nxd2 {[%clk
0:04:44.2]} 8... b6 {[%clk 0:04:37.9]} 9. Bd3 {[%clk 0:04:42.6]} 9... Bb7 {[%clk
0:04:36.9]} 10. f3 {[%clk 0:04:42]} 10... Nc6 {[%clk 0:04:34.9]} 11. a3 {[%clk
0:04:39.4]} 1-0

[Event "Live Chess"]
[Site "Chess.com"]
[Date "2024.06.01"]
[Round "-"]
[White "hapehansen"]
[Black "TheSmoulderingMaster"]
[Result "1-0"]
[WhiteElo "2244"]
[BlackElo "1730"]
[TimeControl "300"]
[EndTime "10:22:04 PDT"]
[Termination "hapehansen won by resignation"]

1. c4 {[%clk 0:04:55.9]} 1... e5 {[%clk 0:04:57.5]} 2. Nc3 {[%clk 0:04:54.7]}
2... Nf6 {[%clk 0:04:54.5]} 3. Nf3 {[%clk 0:04:53.5]} 3... Nc6 {[%clk
0:04:53.8]} 4. e3 {[%clk 0:04:49.3]} 4... Bc5 {[%clk 0:04:52.1]} 5. a3 {[%clk
0:04:44.3]} 5... a6 {[%clk 0:04:51.3]} 6. d4 {[%clk 0:04:35.9]} 6... exd4 {[%clk
0:04:49]} 7. exd4 {[%clk 0:04:34.8]} 7... Ba7 {[%clk 0:04:47.9]} 8. Bg5 {[%clk
0:04:31.8]} 8... O-O {[%clk 0:04:46.5]} 9. Be2 {[%clk 0:04:29.4]} 9... h6 {[%clk
0:04:45.1]} 10. Bh4 {[%clk 0:04:27.6]} 10... d5 {[%clk 0:04:38.2]} 11. cxd5
{[%clk 0:04:23]} 11... Na5 {[%clk 0:04:30.3]} 12. O-O {[%clk 0:04:20]} 12... g5
{[%clk 0:04:26.3]} 13. Bg3 {[%clk 0:04:17.4]} 13... Re8 {[%clk 0:04:23]} 14. Rc1
{[%clk 0:03:55.7]} 14... c6 {[%clk 0:04:16.8]} 15. dxc6 {[%clk 0:03:47.5]} 15...
Nxc6 {[%clk 0:04:14.3]} 16. d5 {[%clk 0:03:42.8]} 16... Ne7 {[%clk 0:04:12]} 17.
Bc4 {[%clk 0:03:24.5]} 17... Nf5 {[%clk 0:04:09.2]} 18. Re1 {[%clk 0:03:07.5]}
18... Rxe1+ {[%clk 0:04:05.4]} 19. Qxe1 {[%clk 0:03:04.6]} 19... Nd6 {[%clk
0:04:04.5]} 20. Ba2 {[%clk 0:02:58.4]} 20... Bg4 {[%clk 0:04:02.4]} 21. Ne5
{[%clk 0:02:43.6]} 21... Bh5 {[%clk 0:03:57.4]} 22. Nc4 {[%clk 0:02:31.5]} 22...
Nf5 {[%clk 0:03:52.9]} 23. Ne3 {[%clk 0:02:23.9]} 23... Nd4 {[%clk 0:03:48]} 24.
Bb1 {[%clk 0:02:13.6]} 24... Rc8 {[%clk 0:03:40]} 25. Nf5 {[%clk 0:02:07.3]}
25... Rxc3 {[%clk 0:03:32.2]} 26. Rxc3 {[%clk 0:01:47.6]} 26... Ne2+ {[%clk
0:03:30.2]} 27. Kh1 {[%clk 0:01:46.5]} 27... Nxc3 {[%clk 0:03:29.3]} 28. bxc3
{[%clk 0:01:42.9]} 28... Bg6 {[%clk 0:03:23.5]} 29. Ne7+ {[%clk 0:01:36.2]}
29... Kg7 {[%clk 0:03:21.8]} 30. Nxg6 {[%clk 0:01:33.6]} 30... fxg6 {[%clk
0:03:20.2]} 31. c4 {[%clk 0:01:30.4]} 31... h5 {[%clk 0:03:16.7]} 32. Be5 {[%clk
0:01:23.3]} 32... Bb8 {[%clk 0:03:12]} 33. Bxb8 {[%clk 0:01:18.3]} 33... Qxb8
{[%clk 0:03:10.6]} 34. Qe7+ {[%clk 0:01:14.7]} 34... Kh6 {[%clk 0:03:08.4]} 35.
Qxf6 {[%clk 0:01:12.6]} 35... Qc7 {[%clk 0:03:05.6]} 36. h4 {[%clk 0:01:06.2]}
36... gxh4 {[%clk 0:03:01.6]} 37. Qxh4 {[%clk 0:01:02.5]} 37... Qe5 {[%clk
0:02:55.2]} 38. Be4 {[%clk 0:00:57.6]} 38... g5 {[%clk 0:02:51.9]} 39. Qg3
{[%clk 0:00:51.8]} 39... Qxe4 {[%clk 0:02:49.5]} 40. Qd6+ {[%clk 0:00:50.5]}
40... Kg7 {[%clk 0:02:47.3]} 41. Qd7+ {[%clk 0:00:49.3]} 41... Kh8 {[%clk
0:02:41.2]} 42. Qc8+ {[%clk 0:00:47.7]} 42... Kg7 {[%clk 0:02:38.8]} 43. Qxb7+
{[%clk 0:00:46.7]} 43... Kh8 {[%clk 0:02:36.3]} 44. Qc8+ {[%clk 0:00:45.5]}
44... Kg7 {[%clk 0:02:34.4]} 45. Qe6 {[%clk 0:00:44.9]} 45... Qxc4 {[%clk
0:02:20.8]} 46. Qe7+ {[%clk 0:00:39.6]} 46... Kg8 {[%clk 0:02:16.1]} 47. d6
{[%clk 0:00:35.4]} 47... Qf1+ {[%clk 0:02:08]} 48. Kh2 {[%clk 0:00:34.1]} 48...
Qxf2 {[%clk 0:02:07.1]} 49. Qxg5+ {[%clk 0:00:32.9]} 49... Kf8 {[%clk
0:02:01.1]} 50. d7 {[%clk 0:00:30.9]} 50... Qd4 {[%clk 0:01:50.7]} 51. d8=Q+
{[%clk 0:00:28.9]} 51... Qxd8 {[%clk 0:01:44.8]} 52. Qxd8+ {[%clk 0:00:28.8]}
52... Kg7 {[%clk 0:01:44.1]} 53. Qe7+ {[%clk 0:00:25.8]} 53... Kg6 {[%clk
0:01:42.5]} 54. Kg3 {[%clk 0:00:24.8]} 1-0

[Event "Live Chess"]
[Site "Chess.com"]
[Date "2024.06.01"]
[Round "-"]
[White "DJ_Lambton"]
[Black "ACM42"]
[Result "0-1"]
[WhiteElo "1776"]
[BlackElo "2218"]
[TimeControl "300"]
[EndTime "10:22:06 PDT"]
[Termination "ACM42 won by resignation"]

1. c4 {[%clk 0:04:58.4]} 1... Nf6 {[%clk 0:04:58.8]} 2. g3 {[%clk 0:04:57.7]}
2... g6 {[%clk 0:04:57.2]} 3. Bg2 {[%clk 0:04:57.3]} 3... Bg7 {[%clk 0:04:55.7]}
4. Nc3 {[%clk 0:04:56.9]} 4... O-O {[%clk 0:04:55]} 5. e3 {[%clk 0:04:56.5]}
5... d6 {[%clk 0:04:52.1]} 6. Nge2 {[%clk 0:04:56.1]} 6... c5 {[%clk 0:04:50.8]}
7. O-O {[%clk 0:04:55.1]} 7... Nc6 {[%clk 0:04:46.9]} 8. b3 {[%clk 0:04:54.4]}
8... Rb8 {[%clk 0:04:42.8]} 9. Bb2 {[%clk 0:04:53.9]} 9... a6 {[%clk 0:04:40.7]}
10. d4 {[%clk 0:04:53]} 10... Qc7 {[%clk 0:04:34.1]} 11. Rc1 {[%clk 0:04:51]}
11... Rd8 {[%clk 0:04:28.3]} 12. d5 {[%clk 0:04:44]} 12... Na5 {[%clk
0:04:18.7]} 13. Qc2 {[%clk 0:04:39.2]} 13... b5 {[%clk 0:04:14.8]} 14. Ne4
{[%clk 0:04:36.5]} 14... bxc4 {[%clk 0:04:04.4]} 15. Nxf6+ {[%clk 0:04:33.2]}
15... exf6 {[%clk 0:04:00.4]} 16. bxc4 {[%clk 0:04:31.7]} 16... Nxc4 {[%clk
0:03:52.7]} 17. Qxc4 {[%clk 0:04:30.9]} 17... Rxb2 {[%clk 0:03:51.3]} 18. Nf4
{[%clk 0:04:29.4]} 18... f5 {[%clk 0:03:39.4]} 19. e4 {[%clk 0:04:26.1]} 19...
Bd7 {[%clk 0:03:34]} 20. exf5 {[%clk 0:04:21.1]} 20... Bb5 {[%clk 0:03:23.8]}
21. Qe4 {[%clk 0:04:19.1]} 21... Re8 {[%clk 0:03:21.6]} 22. Qf3 {[%clk
0:04:03.1]} 22... Bxf1 {[%clk 0:03:19.1]} 23. Bxf1 {[%clk 0:04:00]} 23... Rxa2
{[%clk 0:03:15]} 24. fxg6 {[%clk 0:03:58.1]} 24... hxg6 {[%clk 0:03:12.9]} 25.
Bd3 {[%clk 0:03:56.4]} 25... Ra3 {[%clk 0:03:05.4]} 26. Qg4 {[%clk 0:03:48.8]}
26... Qc8 {[%clk 0:02:53.2]} 27. Qd1 {[%clk 0:03:35.2]} 27... Bh6 {[%clk
0:02:48.3]} 28. Ra1 {[%clk 0:03:27.2]} 28... Rxa1 {[%clk 0:02:39.6]} 29. Qxa1
{[%clk 0:03:26.2]} 29... Bxf4 {[%clk 0:02:38.9]} 30. gxf4 {[%clk 0:03:25.5]}
30... Qg4+ {[%clk 0:02:38.2]} 31. Kf1 {[%clk 0:03:23.6]} 31... Qh3+ {[%clk
0:02:37.1]} 32. Kg1 {[%clk 0:03:22.3]} 32... Qxd3 {[%clk 0:02:36.5]} 0-1